[Event "Titled Tuesday Blitz February 22 Late 2022"]
[White "Le Goff, Ronan"]
[Black "Curtis, John"]
[WhiteFideId "612073"]
[BlackFideId "3200256"]
[WhiteElo "2276"]
[BlackElo "2203"]
[Result "0-1"]
[Round "05"]
[TimeControl "180+1"]
[Date "2022.02.23"]
[WhiteClock "0:01:37"]
[BlackClock "0:00:41"]

1. d4 {[%clk 0:03:00]}  Nf6 {[%clk 0:02:58]} 2. Nc3 {[%clk 0:03:00]}  d5 {[%clk 0:02:58]} 3. Bf4 {[%clk 0:03:00]}  e6 {[%clk 0:02:54]} 4. Nb5 {[%clk 0:02:59]}  Na6 {[%clk 0:02:49]} 5. e3 {[%clk 0:02:58]}  c6 {[%clk 0:02:46]} 6. Nc3 {[%clk 0:02:58]}  Nc7 {[%clk 0:02:44]} 7. Bd3 {[%clk 0:02:56]}  Bd6 {[%clk 0:02:43]} 8. Nh3 {[%clk 0:02:55]}  Qe7 {[%clk 0:02:38]} 9. e4 {[%clk 0:02:55]}  e5 {[%clk 0:02:36]} 10. dxe5 {[%clk 0:02:53]}  Bxe5 {[%clk 0:02:36]} 11. Bxe5 {[%clk 0:02:53]}  Qxe5 {[%clk 0:02:35]} 12. f4 {[%clk 0:02:49]}  Qd4 {[%clk 0:02:28]} 13. e5 {[%clk 0:02:45]}  Bxh3 {[%clk 0:02:19]} 14. gxh3 {[%clk 0:02:45]}  Qe3+ {[%clk 0:01:53]} 15. Qe2 {[%clk 0:02:44]}  Qxe2+ {[%clk 0:01:53]} 16. Kxe2 {[%clk 0:02:43]}  Nd7 {[%clk 0:01:52]} 17. Rhg1 {[%clk 0:02:43]}  g6 {[%clk 0:01:52]} 18. h4 {[%clk 0:02:40]}  Ne6 {[%clk 0:01:48]} 19. Kf3 {[%clk 0:02:39]}  Ndc5 {[%clk 0:01:47]} 20. h5 {[%clk 0:02:38]}  Nd4+ {[%clk 0:01:42]} 21. Kf2 {[%clk 0:02:34]}  Nxd3+ {[%clk 0:01:39]} 22. cxd3 {[%clk 0:02:34]}  O-O-O {[%clk 0:01:38]} 23. Rac1 {[%clk 0:02:27]}  Kb8 {[%clk 0:01:34]} 24. b4 {[%clk 0:02:25]}  a6 {[%clk 0:01:33]} 25. a4 {[%clk 0:02:25]}  f6 {[%clk 0:01:31]} 26. exf6 {[%clk 0:02:22]}  Rdf8 {[%clk 0:01:30]} 27. hxg6 {[%clk 0:02:22]}  hxg6 {[%clk 0:01:29]} 28. Rxg6 {[%clk 0:02:22]}  Rxh2+ {[%clk 0:01:29]} 29. Kg3 {[%clk 0:02:22]}  Rd2 {[%clk 0:01:26]} 30. b5 {[%clk 0:02:21]}  Rxd3+ {[%clk 0:01:25]} 31. Kg4 {[%clk 0:02:21]}  Nb3 {[%clk 0:01:20]} 32. Rc2 {[%clk 0:02:15]}  Nd4 {[%clk 0:01:18]} 33. Rc1 {[%clk 0:02:15]}  Nb3 {[%clk 0:01:18]} 34. Re1 {[%clk 0:02:05]}  Rxc3 {[%clk 0:01:15]} 35. bxa6 {[%clk 0:02:05]}  Nc5 {[%clk 0:01:04]} 36. axb7 {[%clk 0:02:04]}  Ne4 {[%clk 0:01:02]} 37. Kf5 {[%clk 0:01:59]}  Rg3 {[%clk 0:01:01]} 38. Rxe4 {[%clk 0:01:48]}  Rxg6 {[%clk 0:01:00]} 39. Re8+ {[%clk 0:01:47]}  Rxe8 {[%clk 0:00:59]} 40. f7 {[%clk 0:01:47]}  Rgg8 {[%clk 0:00:57]} 41. fxg8=Q {[%clk 0:01:36]}  Rxg8 {[%clk 0:00:56]} 42. Ke5 {[%clk 0:01:36]}  Kxb7 {[%clk 0:00:53]} 43. f5 {[%clk 0:01:36]}  Kb6 {[%clk 0:00:50]} 44. f6 {[%clk 0:01:37]}  Re8+ {[%clk 0:00:48]} 45. Kd6 {[%clk 0:01:37]}  Rf8 {[%clk 0:00:45]} 46. Ke7 {[%clk 0:01:36]}  Rxf6 {[%clk 0:00:44]} 47. Kxf6 {[%clk 0:01:37]}  d4 {[%clk 0:00:44]} 48. Ke5 {[%clk 0:01:37]}  d3 {[%clk 0:00:44]} 49. Kd4 {[%clk 0:01:37]}  d2 {[%clk 0:00:44]} 50. Kc4 {[%clk 0:01:37]}  d1=Q {[%clk 0:00:44]} 51. a5+ {[%clk 0:01:38]}  Kxa5 {[%clk 0:00:43]} 52. Kc3 {[%clk 0:01:39]}  Qc1+ {[%clk 0:00:42]} 53. Kb3 {[%clk 0:01:38]}  Qb1+ {[%clk 0:00:42]} 54. Ka3 {[%clk 0:01:38]}  Kb6 {[%clk 0:00:41]} 55. Ka4 {[%clk 0:01:38]}  Kc5 {[%clk 0:00:41]} 56. Ka3 {[%clk 0:01:38]}  Kc4 {[%clk 0:00:40]} 57. Ka4 {[%clk 0:01:37]}  Qb4# {[%clk 0:00:41]} 0-1


[Site "https://www.chess.com"]

[Event "Titled Tuesday Blitz February 22 Late 2022"]
[White "Lehtosaari, Mauri"]
[Black "Gomez Ledo, Roberto Carlos"]
[WhiteFideId "501999"]
[BlackFideId "3507076"]
[WhiteElo "2442"]
[BlackElo "2379"]
[Result "0-1"]
[Round "05"]
[TimeControl "180+1"]
[Date "2022.02.23"]
[WhiteClock "0:00:32"]
[BlackClock "0:00:47"]

1. d4 {[%clk 0:03:00]}  Nf6 {[%clk 0:02:58]} 2. Nf3 {[%clk 0:03:01]}  d5 {[%clk 0:02:57]} 3. Bg5 {[%clk 0:03:01]}  c6 {[%clk 0:02:37]} 4. Nbd2 {[%clk 0:02:58]}  Qb6 {[%clk 0:02:34]} 5. Nb3 {[%clk 0:02:50]}  Bf5 {[%clk 0:02:30]} 6. e3 {[%clk 0:02:26]}  Nbd7 {[%clk 0:02:29]} 7. c3 {[%clk 0:02:24]}  e6 {[%clk 0:02:27]} 8. Nh4 {[%clk 0:02:19]}  h6 {[%clk 0:02:22]} 9. Bxf6 {[%clk 0:02:12]}  Nxf6 {[%clk 0:02:23]} 10. Nxf5 {[%clk 0:02:12]}  exf5 {[%clk 0:02:23]} 11. Bd3 {[%clk 0:02:12]}  g6 {[%clk 0:02:22]} 12. O-O {[%clk 0:02:10]}  Bd6 {[%clk 0:02:14]} 13. Rb1 {[%clk 0:01:54]}  O-O {[%clk 0:02:08]} 14. c4 {[%clk 0:01:51]}  Qc7 {[%clk 0:02:08]} 15. h3 {[%clk 0:01:48]}  Rfe8 {[%clk 0:02:04]} 16. cxd5 {[%clk 0:01:46]}  Nxd5 {[%clk 0:02:03]} 17. Qf3 {[%clk 0:01:39]}  Qe7 {[%clk 0:02:00]} 18. a3 {[%clk 0:01:31]}  Rad8 {[%clk 0:01:59]} 19. Rbc1 {[%clk 0:01:29]}  Qg5 {[%clk 0:01:52]} 20. Bc4 {[%clk 0:01:23]}  Nxe3 {[%clk 0:01:28]} 21. fxe3 {[%clk 0:01:12]}  Rxe3 {[%clk 0:01:29]} 22. Qf2 {[%clk 0:01:06]}  Rxh3 {[%clk 0:01:27]} 23. Rfd1 {[%clk 0:00:41]}  Bg3 {[%clk 0:00:50]} 24. Qf3 {[%clk 0:00:32]}  Bh2+ {[%clk 0:00:47]} 0-1


[Site "https://www.chess.com"]

[Event "Titled Tuesday Blitz February 22 Late 2022"]
[White "Loay, Sameer"]
[Black "Blohberger, Felix"]
[WhiteFideId "8104239"]
[BlackFideId "1632051"]
[WhiteElo "2040"]
[BlackElo "2474"]
[Result "1-0"]
[Round "05"]
[TimeControl "180+1"]
[Date "2022.02.23"]
[WhiteClock "0:00:50"]
[BlackClock "0:00:01"]

1. Nf3 {[%clk 0:03:00]}  Nf6 {[%clk 0:02:59]} 2. g3 {[%clk 0:03:01]}  g6 {[%clk 0:02:59]} 3. Bg2 {[%clk 0:03:02]}  Bg7 {[%clk 0:02:58]} 4. O-O {[%clk 0:03:02]}  O-O {[%clk 0:02:55]} 5. d3 {[%clk 0:03:03]}  c5 {[%clk 0:02:54]} 6. c3 {[%clk 0:03:03]}  Nc6 {[%clk 0:02:53]} 7. e4 {[%clk 0:03:03]}  d6 {[%clk 0:02:52]} 8. Re1 {[%clk 0:03:03]}  Rb8 {[%clk 0:02:50]} 9. h3 {[%clk 0:03:02]}  b5 {[%clk 0:02:44]} 10. a3 {[%clk 0:03:03]}  a5 {[%clk 0:02:44]} 11. Be3 {[%clk 0:03:03]}  b4 {[%clk 0:02:44]} 12. axb4 {[%clk 0:03:04]}  axb4 {[%clk 0:02:44]} 13. Nbd2 {[%clk 0:03:05]}  Nd7 {[%clk 0:02:40]} 14. d4 {[%clk 0:03:05]}  Bb7 {[%clk 0:02:29]} 15. d5 {[%clk 0:03:02]}  Nce5 {[%clk 0:02:17]} 16. Nxe5 {[%clk 0:03:01]}  Nxe5 {[%clk 0:02:18]} 17. Qe2 {[%clk 0:02:49]}  bxc3 {[%clk 0:01:49]} 18. bxc3 {[%clk 0:02:50]}  Nd7 {[%clk 0:01:48]} 19. Rec1 {[%clk 0:02:39]}  Ra8 {[%clk 0:01:46]} 20. Qc4 {[%clk 0:02:09]}  Qc7 {[%clk 0:01:41]} 21. Rab1 {[%clk 0:02:04]}  Ba6 {[%clk 0:01:34]} 22. Qb3 {[%clk 0:02:03]}  Rfb8 {[%clk 0:01:27]} 23. Qc2 {[%clk 0:02:00]}  Ne5 {[%clk 0:01:26]} 24. c4 {[%clk 0:01:55]}  Rxb1 {[%clk 0:01:16]} 25. Rxb1 {[%clk 0:01:56]}  Rb8 {[%clk 0:01:16]} 26. Rxb8+ {[%clk 0:01:43]}  Qxb8 {[%clk 0:01:16]} 27. f4 {[%clk 0:01:44]}  Nd7 {[%clk 0:01:13]} 28. Qa4 {[%clk 0:01:32]}  Qb7 {[%clk 0:01:05]} 29. Kh2 {[%clk 0:01:32]}  Kf8 {[%clk 0:01:04]} 30. e5 {[%clk 0:01:26]}  Nb6 {[%clk 0:00:56]} 31. Qa5 {[%clk 0:01:12]}  Kg8 {[%clk 0:00:38]} 32. Bxc5 {[%clk 0:01:02]}  Nxc4 {[%clk 0:00:04]} 33. Nxc4 {[%clk 0:00:51]}  Bxc4 {[%clk 0:00:05]} 34. Qd8+ {[%clk 0:00:51]}  Bf8 {[%clk 0:00:05]} 35. exd6 {[%clk 0:00:51]}  Bxd5 {[%clk 0:00:01]} 36. dxe7 {[%clk 0:00:50]} 1-0


[Site "https://www.chess.com"]

[Event "Titled Tuesday Blitz February 22 Late 2022"]
[White "Lodici, Lorenzo"]
[Black "Martinez Alcantara, Jose Eduardo"]
[WhiteFideId "884189"]
[BlackFideId "3805662"]
[WhiteElo "2265"]
[BlackElo "2690"]
[Result "0-1"]
[Round "05"]
[TimeControl "180+1"]
[Date "2022.02.22"]
[WhiteClock "0:00:23"]
[BlackClock "0:00:57"]

1. c4 {[%clk 0:03:00]}  c5 {[%clk 0:03:00]} 2. Nc3 {[%clk 0:03:00]}  Nc6 {[%clk 0:03:00]} 3. e3 {[%clk 0:03:01]}  g6 {[%clk 0:03:01]} 4. g4 {[%clk 0:03:01]}  Bg7 {[%clk 0:03:00]} 5. Bg2 {[%clk 0:03:01]}  e6 {[%clk 0:03:00]} 6. h4 {[%clk 0:03:01]}  h6 {[%clk 0:02:58]} 7. Nf3 {[%clk 0:02:59]}  Nge7 {[%clk 0:02:56]} 8. d4 {[%clk 0:02:56]}  cxd4 {[%clk 0:02:51]} 9. exd4 {[%clk 0:02:57]}  d5 {[%clk 0:02:51]} 10. cxd5 {[%clk 0:02:37]}  exd5 {[%clk 0:02:49]} 11. g5 {[%clk 0:02:34]}  h5 {[%clk 0:02:48]} 12. Be3 {[%clk 0:02:21]}  O-O {[%clk 0:02:47]} 13. Qd2 {[%clk 0:02:18]}  Bg4 {[%clk 0:02:42]} 14. Nh2 {[%clk 0:02:12]}  Bf5 {[%clk 0:02:41]} 15. Nf1 {[%clk 0:02:11]}  Nb4 {[%clk 0:02:36]} 16. Rd1 {[%clk 0:01:57]}  Bc2 {[%clk 0:02:16]} 17. Ra1 {[%clk 0:01:54]}  Bd3 {[%clk 0:02:05]} 18. Ng3 {[%clk 0:01:45]}  Qb6 {[%clk 0:01:31]} 19. Rc1 {[%clk 0:01:18]}  Bc4 {[%clk 0:01:29]} 20. Bf1 {[%clk 0:01:16]}  Nxa2 {[%clk 0:01:10]} 21. Nxa2 {[%clk 0:00:29]}  Bxa2 {[%clk 0:01:11]} 22. f4 {[%clk 0:00:27]}  Rac8 {[%clk 0:01:04]} 23. Rc3 {[%clk 0:00:26]}  Rxc3 {[%clk 0:01:02]} 24. bxc3 {[%clk 0:00:27]}  Bc4 {[%clk 0:01:01]} 25. f5 {[%clk 0:00:25]}  Nxf5 {[%clk 0:00:56]} 26. Nxf5 {[%clk 0:00:22]}  Qb1+ {[%clk 0:00:56]} 27. Qd1 {[%clk 0:00:23]}  Qxf5 {[%clk 0:00:56]} 28. Bxc4 {[%clk 0:00:23]}  dxc4 {[%clk 0:00:57]} 0-1


[Site "https://www.chess.com"]

[Event "Titled Tuesday Blitz February 22 Late 2022"]
[White "Lopez Del Alamo, Antonio"]
[Black "Batsiashvili, Nino"]
[WhiteFideId "2227339"]
[BlackFideId "13602993"]
[WhiteElo "2082"]
[BlackElo "2230"]
[Result "0-1"]
[Round "05"]
[TimeControl "180+1"]
[Date "2022.02.23"]
[WhiteClock "0:00:07"]
[BlackClock "0:01:03"]

1. e4 {[%clk 0:02:59]}  e5 {[%clk 0:02:58]} 2. Bc4 {[%clk 0:02:57]}  Nc6 {[%clk 0:02:56]} 3. d3 {[%clk 0:02:57]}  Nf6 {[%clk 0:02:30]} 4. Nc3 {[%clk 0:02:56]}  Na5 {[%clk 0:02:30]} 5. Nge2 {[%clk 0:02:53]}  Nxc4 {[%clk 0:02:30]} 6. dxc4 {[%clk 0:02:53]}  Bc5 {[%clk 0:02:30]} 7. O-O {[%clk 0:02:48]}  d6 {[%clk 0:02:30]} 8. Qd3 {[%clk 0:02:45]}  c6 {[%clk 0:02:25]} 9. Be3 {[%clk 0:02:38]}  Qe7 {[%clk 0:02:23]} 10. Bxc5 {[%clk 0:02:28]}  dxc5 {[%clk 0:02:22]} 11. Rad1 {[%clk 0:02:24]}  O-O {[%clk 0:02:22]} 12. b3 {[%clk 0:02:23]}  Bg4 {[%clk 0:02:18]} 13. f3 {[%clk 0:02:22]}  Rad8 {[%clk 0:02:17]} 14. Qe3 {[%clk 0:02:18]}  Be6 {[%clk 0:02:16]} 15. Rd3 {[%clk 0:02:08]}  Rxd3 {[%clk 0:02:15]} 16. Qxd3 {[%clk 0:02:05]}  Rd8 {[%clk 0:02:15]} 17. Qe3 {[%clk 0:02:04]}  a6 {[%clk 0:02:12]} 18. a4 {[%clk 0:02:03]}  a5 {[%clk 0:02:09]} 19. Rd1 {[%clk 0:02:00]}  b6 {[%clk 0:02:08]} 20. Rd3 {[%clk 0:01:58]}  Rxd3 {[%clk 0:02:08]} 21. Qxd3 {[%clk 0:01:59]}  Nd7 {[%clk 0:02:03]} 22. Nd1 {[%clk 0:01:53]}  f6 {[%clk 0:02:00]} 23. Ne3 {[%clk 0:01:52]}  g6 {[%clk 0:01:59]} 24. g3 {[%clk 0:01:44]}  Nf8 {[%clk 0:01:59]} 25. f4 {[%clk 0:01:39]}  exf4 {[%clk 0:01:56]} 26. gxf4 {[%clk 0:01:35]}  Bf7 {[%clk 0:01:51]} 27. Kf2 {[%clk 0:01:08]}  h5 {[%clk 0:01:49]} 28. h4 {[%clk 0:00:40]}  f5 {[%clk 0:01:45]} 29. exf5 {[%clk 0:00:38]}  Qxh4+ {[%clk 0:01:45]} 30. Kf3 {[%clk 0:00:39]}  Qh1+ {[%clk 0:01:35]} 31. Kf2 {[%clk 0:00:38]}  h4 {[%clk 0:01:33]} 32. Qd6 {[%clk 0:00:18]}  h3 {[%clk 0:01:28]} 33. fxg6 {[%clk 0:00:14]}  Bxg6 {[%clk 0:01:26]} 34. f5 {[%clk 0:00:14]}  Bf7 {[%clk 0:01:17]} 35. Qg3+ {[%clk 0:00:14]}  Kh8 {[%clk 0:01:13]} 36. Nf4 {[%clk 0:00:15]}  h2 {[%clk 0:01:09]} 37. Qh3+ {[%clk 0:00:14]}  Kg7 {[%clk 0:01:06]} 38. Nh5+ {[%clk 0:00:12]}  Bxh5 {[%clk 0:01:05]} 39. Qxh5 {[%clk 0:00:12]}  Qg1+ {[%clk 0:01:06]} 40. Ke2 {[%clk 0:00:11]}  h1=Q {[%clk 0:01:06]} 41. f6+ {[%clk 0:00:11]}  Kg8 {[%clk 0:01:02]} 42. f7+ {[%clk 0:00:09]}  Kg7 {[%clk 0:01:02]} 43. Nf5+ {[%clk 0:00:07]}  Kf6 {[%clk 0:01:03]} 0-1


[Site "https://www.chess.com"]

[Event "Titled Tuesday Blitz February 22 Late 2022"]
[White "Medeiros Jr, Francisco De Assis"]
[Black "Muradli, Mahammad"]
[WhiteFideId "2114267"]
[BlackFideId "13409301"]
[WhiteElo "1998"]
[BlackElo "2645"]
[Result "0-1"]
[Round "05"]
[TimeControl "180+1"]
[Date "2022.02.23"]
[WhiteClock "0:00:02"]
[BlackClock "0:01:45"]

1. d4 {[%clk 0:02:59]}  d6 {[%clk 0:03:00]} 2. Nf3 {[%clk 0:02:58]}  g6 {[%clk 0:03:01]} 3. c3 {[%clk 0:02:58]}  Bg7 {[%clk 0:03:01]} 4. h3 {[%clk 0:02:59]}  b6 {[%clk 0:03:01]} 5. Bf4 {[%clk 0:02:58]}  Bb7 {[%clk 0:03:02]} 6. Nbd2 {[%clk 0:02:58]}  Nd7 {[%clk 0:03:03]} 7. e4 {[%clk 0:02:58]}  e5 {[%clk 0:03:04]} 8. dxe5 {[%clk 0:02:58]}  dxe5 {[%clk 0:03:04]} 9. Bg3 {[%clk 0:02:57]}  Ngf6 {[%clk 0:03:03]} 10. Nxe5 {[%clk 0:02:41]}  Nh5 {[%clk 0:02:49]} 11. Nxd7 {[%clk 0:02:15]}  Nxg3 {[%clk 0:02:49]} 12. fxg3 {[%clk 0:02:16]}  Qxd7 {[%clk 0:02:49]} 13. Bc4 {[%clk 0:02:05]}  O-O-O {[%clk 0:02:27]} 14. Qe2 {[%clk 0:01:50]}  Rhe8 {[%clk 0:02:26]} 15. Rd1 {[%clk 0:01:41]}  f5 {[%clk 0:02:21]} 16. O-O {[%clk 0:01:35]}  Qd6 {[%clk 0:02:20]} 17. Kh2 {[%clk 0:01:15]}  fxe4 {[%clk 0:02:07]} 18. Qg4+ {[%clk 0:01:14]}  Kb8 {[%clk 0:02:05]} 19. Nxe4 {[%clk 0:01:08]}  Qc6 {[%clk 0:01:59]} 20. Rxd8+ {[%clk 0:00:35]}  Rxd8 {[%clk 0:01:57]} 21. Qg5 {[%clk 0:00:17]}  Rd7 {[%clk 0:01:48]} 22. Rf7 {[%clk 0:00:04]}  Qxe4 {[%clk 0:01:45]} 23. Rxd7 {[%clk 0:00:02]}  Qxg2# {[%clk 0:01:45]} 0-1


[Site "https://www.chess.com"]

[Event "Titled Tuesday Blitz February 22 Late 2022"]
[White "Mekhitarian, Krikor Sevag"]
[Black "Naroditsky, Daniel"]
[WhiteFideId "2107660"]
[BlackFideId "2026961"]
[WhiteElo "2598"]
[BlackElo "2608"]
[Result "0-1"]
[Round "05"]
[TimeControl "180+1"]
[Date "2022.02.22"]
[WhiteClock "0:00:02"]
[BlackClock "0:00:04"]

1. e4 {[%clk 0:03:00]}  e5 {[%clk 0:02:59]} 2. Nf3 {[%clk 0:02:57]}  Nc6 {[%clk 0:02:58]} 3. Bc4 {[%clk 0:02:56]}  Nf6 {[%clk 0:02:58]} 4. d3 {[%clk 0:02:55]}  h6 {[%clk 0:02:58]} 5. O-O {[%clk 0:02:50]}  g5 {[%clk 0:02:59]} 6. c3 {[%clk 0:02:43]}  Bg7 {[%clk 0:02:51]} 7. Re1 {[%clk 0:02:27]}  O-O {[%clk 0:02:48]} 8. Nbd2 {[%clk 0:02:20]}  d5 {[%clk 0:02:49]} 9. Bb3 {[%clk 0:02:15]}  Re8 {[%clk 0:02:42]} 10. exd5 {[%clk 0:02:00]}  Nxd5 {[%clk 0:02:42]} 11. Nc4 {[%clk 0:02:01]}  Bf5 {[%clk 0:02:30]} 12. Bc2 {[%clk 0:01:35]}  Qd7 {[%clk 0:02:28]} 13. Nfd2 {[%clk 0:01:29]}  Bg6 {[%clk 0:02:02]} 14. Ne4 {[%clk 0:01:23]}  b6 {[%clk 0:02:02]} 15. Ng3 {[%clk 0:01:09]}  Rad8 {[%clk 0:01:46]} 16. a4 {[%clk 0:01:09]}  a5 {[%clk 0:01:46]} 17. Qf3 {[%clk 0:01:02]}  Nf4 {[%clk 0:01:41]} 18. Bxf4 {[%clk 0:00:58]}  gxf4 {[%clk 0:01:16]} 19. Ne4 {[%clk 0:00:37]}  Ne7 {[%clk 0:01:17]} 20. Rad1 {[%clk 0:00:30]}  Nf5 {[%clk 0:01:13]} 21. g3 {[%clk 0:00:31]}  Kh8 {[%clk 0:01:09]} 22. Kh1 {[%clk 0:00:31]}  Qc6 {[%clk 0:01:03]} 23. Kg1 {[%clk 0:00:24]}  Nd6 {[%clk 0:00:48]} 24. Ncd2 {[%clk 0:00:20]}  f5 {[%clk 0:00:46]} 25. Ng5 {[%clk 0:00:20]}  e4 {[%clk 0:00:45]} 26. Qxf4 {[%clk 0:00:19]}  hxg5 {[%clk 0:00:44]} 27. Qxg5 {[%clk 0:00:20]}  Bh7 {[%clk 0:00:36]} 28. dxe4 {[%clk 0:00:19]}  fxe4 {[%clk 0:00:37]} 29. Nxe4 {[%clk 0:00:16]}  Nf7 {[%clk 0:00:33]} 30. Qh4 {[%clk 0:00:07]}  Rxd1 {[%clk 0:00:26]} 31. Rxd1 {[%clk 0:00:08]}  Qh6 {[%clk 0:00:05]} 32. Qxh6 {[%clk 0:00:03]}  Bxh6 {[%clk 0:00:06]} 33. Re1 {[%clk 0:00:03]}  Ng5 {[%clk 0:00:03]} 34. Kg2 {[%clk 0:00:02]}  Bxe4+ {[%clk 0:00:02]} 35. Bxe4 {[%clk 0:00:02]}  Rxe4 {[%clk 0:00:03]} 36. Rd1 {[%clk 0:00:03]}  Re2 {[%clk 0:00:03]} 37. Rd7 {[%clk 0:00:01]}  Rxb2 {[%clk 0:00:02]} 38. Rxc7 {[%clk 0:00:02]}  Ne4 {[%clk 0:00:03]} 39. Kf3 {[%clk 0:00:02]}  Nxf2 {[%clk 0:00:02]} 40. h4 {[%clk 0:00:03]}  Nd3 {[%clk 0:00:03]} 41. Ke4 {[%clk 0:00:03]}  Nc5+ {[%clk 0:00:03]} 42. Kf5 {[%clk 0:00:04]}  Kg8 {[%clk 0:00:02]} 43. Kg6 {[%clk 0:00:04]}  Bf8 {[%clk 0:00:03]} 44. g4 {[%clk 0:00:04]}  Rd2 {[%clk 0:00:03]} 45. g5 {[%clk 0:00:05]}  Rd6+ {[%clk 0:00:03]} 46. Kf5 {[%clk 0:00:04]}  Rd5+ {[%clk 0:00:04]} 47. Kg6 {[%clk 0:00:05]}  Rd6+ {[%clk 0:00:05]} 48. Kf5 {[%clk 0:00:05]}  Ne6 {[%clk 0:00:05]} 49. Rc8 {[%clk 0:00:05]}  Ng7+ {[%clk 0:00:05]} 50. Ke4 {[%clk 0:00:05]}  Re6+ {[%clk 0:00:04]} 51. Kd5 {[%clk 0:00:05]}  Kf7 {[%clk 0:00:04]} 52. Rc7+ {[%clk 0:00:04]}  Re7 {[%clk 0:00:05]} 53. Rc6 {[%clk 0:00:02]}  Rd7+ {[%clk 0:00:05]} 54. Ke4 {[%clk 0:00:02]}  Bc5 {[%clk 0:00:06]} 55. g6+ {[%clk 0:00:01]}  Ke7 {[%clk 0:00:06]} 56. Ke5 {[%clk 0:00:02]}  Rd6 {[%clk 0:00:06]} 57. Rc7+ {[%clk 0:00:02]}  Rd7 {[%clk 0:00:07]} 58. Rc6 {[%clk 0:00:02]}  Bf2 {[%clk 0:00:04]} 59. Rf6 {[%clk 0:00:01]}  Bg3+ {[%clk 0:00:03]} 60. Ke4 {[%clk 0:00:02]}  Kxf6 {[%clk 0:00:04]} 0-1


[Site "https://www.chess.com"]

[Event "Titled Tuesday Blitz February 22 Late 2022"]
[White "Mikheev, Stanislav"]
[Black "Tregubov, Pavel V."]
[WhiteFideId "4135920"]
[BlackFideId "4115341"]
[WhiteElo "2249"]
[BlackElo "2341"]
[Result "1-0"]
[Round "05"]
[TimeControl "180+1"]
[Date "2022.02.23"]
[WhiteClock "0:00:16"]
[BlackClock "0:00:11"]

1. d4 {[%clk 0:03:00]}  Nf6 {[%clk 0:02:59]} 2. c4 {[%clk 0:03:01]}  e6 {[%clk 0:02:59]} 3. Nf3 {[%clk 0:03:01]}  Bb4+ {[%clk 0:02:59]} 4. Nbd2 {[%clk 0:03:01]}  O-O {[%clk 0:02:57]} 5. a3 {[%clk 0:03:01]}  Be7 {[%clk 0:02:58]} 6. e4 {[%clk 0:03:01]}  d6 {[%clk 0:02:58]} 7. Bd3 {[%clk 0:03:01]}  e5 {[%clk 0:02:58]} 8. d5 {[%clk 0:02:56]}  a5 {[%clk 0:02:57]} 9. b3 {[%clk 0:02:54]}  Nh5 {[%clk 0:02:51]} 10. O-O {[%clk 0:02:47]}  Nf4 {[%clk 0:02:50]} 11. Bc2 {[%clk 0:02:47]}  Nd7 {[%clk 0:02:44]} 12. Bb2 {[%clk 0:02:47]}  Nf6 {[%clk 0:02:31]} 13. b4 {[%clk 0:02:46]}  N6h5 {[%clk 0:02:18]} 14. Nb3 {[%clk 0:02:24]}  b6 {[%clk 0:02:14]} 15. bxa5 {[%clk 0:02:16]}  bxa5 {[%clk 0:02:14]} 16. c5 {[%clk 0:02:16]}  a4 {[%clk 0:01:55]} 17. Nbd2 {[%clk 0:02:15]}  Ba6 {[%clk 0:01:52]} 18. Re1 {[%clk 0:02:14]}  Nd3 {[%clk 0:01:49]} 19. Bxd3 {[%clk 0:01:52]}  Bxd3 {[%clk 0:01:50]} 20. Nxe5 {[%clk 0:01:43]}  dxe5 {[%clk 0:01:49]} 21. Qxh5 {[%clk 0:01:42]}  f6 {[%clk 0:01:50]} 22. Rac1 {[%clk 0:01:30]}  Qb8 {[%clk 0:01:34]} 23. Bc3 {[%clk 0:01:28]}  Qb5 {[%clk 0:01:21]} 24. Bb4 {[%clk 0:01:23]}  f5 {[%clk 0:01:09]} 25. d6 {[%clk 0:01:09]}  Bd8 {[%clk 0:00:52]} 26. exf5 {[%clk 0:00:52]}  Rxf5 {[%clk 0:00:51]} 27. Qg4 {[%clk 0:00:52]}  cxd6 {[%clk 0:00:48]} 28. cxd6 {[%clk 0:00:52]}  Bb6 {[%clk 0:00:48]} 29. Ne4 {[%clk 0:00:41]}  Raf8 {[%clk 0:00:35]} 30. d7 {[%clk 0:00:36]}  Rf4 {[%clk 0:00:16]} 31. Qe6+ {[%clk 0:00:28]}  Kh8 {[%clk 0:00:16]} 32. Bxf8 {[%clk 0:00:27]}  Rxf8 {[%clk 0:00:16]} 33. Rc8 {[%clk 0:00:25]}  Bd8 {[%clk 0:00:15]} 34. Nd6 {[%clk 0:00:21]}  Qb3 {[%clk 0:00:11]} 35. Nf7+ {[%clk 0:00:18]}  Kg8 {[%clk 0:00:11]} 36. Nxd8+ {[%clk 0:00:16]} 1-0


[Site "https://www.chess.com"]

[Event "Titled Tuesday Blitz February 22 Late 2022"]
[White "Mogranzini, Roberto"]
[Black "Adury, Anant"]
[WhiteFideId "810894"]
[BlackFideId "30964687"]
[WhiteElo "2469"]
[BlackElo "2305"]
[Result "1-0"]
[Round "05"]
[TimeControl "180+1"]
[Date "2022.02.23"]
[WhiteClock "0:00:57"]
[BlackClock "0:01:43"]

1. e4 {[%clk 0:02:16]}  e5 {[%clk 0:02:59]} 2. Nf3 {[%clk 0:02:17]}  Nc6 {[%clk 0:02:54]} 3. Bb5 {[%clk 0:02:16]}  a6 {[%clk 0:02:53]} 4. Ba4 {[%clk 0:02:16]}  d6 {[%clk 0:02:51]} 5. O-O {[%clk 0:02:15]}  g6 {[%clk 0:02:42]} 6. Nc3 {[%clk 0:02:14]}  Bg7 {[%clk 0:02:42]} 7. a3 {[%clk 0:02:14]}  b5 {[%clk 0:02:42]} 8. Bb3 {[%clk 0:02:13]}  Nge7 {[%clk 0:02:43]} 9. h3 {[%clk 0:02:14]}  Kf8 {[%clk 0:02:43]} 10. d3 {[%clk 0:02:14]}  h6 {[%clk 0:02:36]} 11. Nd5 {[%clk 0:02:12]}  Be6 {[%clk 0:02:33]} 12. c3 {[%clk 0:02:07]}  Na5 {[%clk 0:02:32]} 13. Ba2 {[%clk 0:02:06]}  c6 {[%clk 0:02:29]} 14. Nxe7 {[%clk 0:02:04]}  Qxe7 {[%clk 0:02:30]} 15. b4 {[%clk 0:02:03]}  Nb7 {[%clk 0:02:26]} 16. a4 {[%clk 0:01:59]}  Kg8 {[%clk 0:02:21]} 17. Bxe6 {[%clk 0:01:57]}  Qxe6 {[%clk 0:02:22]} 18. axb5 {[%clk 0:01:57]}  cxb5 {[%clk 0:02:22]} 19. Ra3 {[%clk 0:01:54]}  Kh7 {[%clk 0:02:22]} 20. Be3 {[%clk 0:01:49]}  d5 {[%clk 0:02:22]} 21. Qb3 {[%clk 0:01:45]}  Rhd8 {[%clk 0:02:17]} 22. Rfa1 {[%clk 0:01:43]}  Qc6 {[%clk 0:02:14]} 23. exd5 {[%clk 0:01:24]}  Rxd5 {[%clk 0:02:14]} 24. Rxa6 {[%clk 0:01:22]}  Rxa6 {[%clk 0:02:10]} 25. Rxa6 {[%clk 0:01:23]}  Qxa6 {[%clk 0:02:10]} 26. Qxd5 {[%clk 0:01:23]}  e4 {[%clk 0:02:08]} 27. dxe4 {[%clk 0:01:19]}  Nd6 {[%clk 0:02:08]} 28. Bd4 {[%clk 0:01:17]}  Bxd4 {[%clk 0:01:58]} 29. Nxd4 {[%clk 0:01:18]}  Kg7 {[%clk 0:01:56]} 30. Nc6 {[%clk 0:01:09]}  Qa1+ {[%clk 0:01:55]} 31. Kh2 {[%clk 0:01:08]}  Ne8 {[%clk 0:01:49]} 32. Qe5+ {[%clk 0:01:06]}  Kh7 {[%clk 0:01:48]} 33. Qxe8 {[%clk 0:01:05]}  Qxc3 {[%clk 0:01:49]} 34. Qxf7+ {[%clk 0:01:05]}  Kh8 {[%clk 0:01:49]} 35. Qf8+ {[%clk 0:01:01]}  Kh7 {[%clk 0:01:49]} 36. Qe7+ {[%clk 0:01:01]}  Kh8 {[%clk 0:01:49]} 37. Ne5 {[%clk 0:01:02]}  Qc1 {[%clk 0:01:43]} 38. Nxg6+ {[%clk 0:01:01]}  Kg8 {[%clk 0:01:43]} 39. Qf8+ {[%clk 0:00:56]}  Kh7 {[%clk 0:01:43]} 40. Qf7# {[%clk 0:00:57]} 1-0


[Site "https://www.chess.com"]